Cogmind - Beta 16.1 @@@ ROGUE MODE // 2026.03.29 @ 16:38:04 Player: Minty Result: Destroyed by 3F-7W1(R) with Subdweller Beam Cannon Performance ------------- Evolutions (0) 0 Regions Visited (2) 400 Robots Destroyed (13) 65 Value Destroyed (386) 386 Prototype IDs (0) 0 Alien Tech Used (0) 0 Bonus (0) 0 TOTAL SCORE: 851 Bonus ------- None Cogmind --------- Core Integrity 0/250 Matter 171/300 Energy 125/125 System Corruption 0% Temperature Cool (9) Movement Walking (190) Ox1 Location -10/Subcaves Parts ------- > --- POWER (1) -------- Light Ion Engine > --- PROPULSION (2) --- Aluminum Leg Aluminum Leg > --- UTILITY (2) ------ Heat Sink Large Storage Unit > --- WEAPON (2) ------- Improved Light Cannon Improved Light Cannon > --- INVENTORY (15) --- Wheel Wheel Small Storage Unit High-capacity Matter Pod (114) Spread Laser Spread Laser Spread Laser Subdweller Laser Subdweller Machine Gun Improved Light Cannon Improved Light Cannon Flamer Peak State ------------ > --- POWER ------------ Ion Engine > --- PROPULSION ------- Light Treads Light Treads > --- UTILITY ---------- Improved Heat Sink Large Storage Unit > --- WEAPON ----------- Spread Laser Spread Laser > --- INVENTORY -------- Light Ion Engine Aluminum Leg Aluminum Leg Wheel Wheel Heat Sink Small Storage Unit High-capacity Matter Pod Spread Laser Spread Laser Improved Light Cannon Improved Light Cannon Improved Light Cannon Improved Light Cannon [Rating: 13] Favorites ----------- Power Ion Engine Engine Ion Engine Propulsion Light Treads Treads Light Treads Leg Aluminum Leg Wheel Wheel Utility Large Storage Unit Device Improved Heat Sink Storage Large Storage Unit Protection Backup Plating I Weapon Improved Light Cannon Energy Gun Spread Laser Ballistic Gun Assault Rifle Ballistic Cannon Improved Light Cannon Build | -11 -10 -10 ------- Run | Yrd Mat Sub Slots Evolved . | . . . Power . | . . . Propulsion . | . . . Utility . | . . . Weapon . | . . . Parts Attached 15 | . 8 7 Power 1 | . . 1 Engine 1 | . . 1 Core . | . . . Reactor . | . . . Propulsion 6 | . 2 4 Treads 2 | . 2 . Leg 2 | . . 2 Wheel 2 | . . 2 Hover . | . . . Flight . | . . . Utility 3 | . 3 . Device 2 | . 2 . Storage 1 | . 1 . Processor . | . . . Hackware . | . . . Protection . | . . . Artifact . | . . . Weapon 5 | . 3 2 Energy Gun 2 | . 2 . Energy Cannon . | . . . Ballistic Gun 1 | . 1 . Ballistic Cannon 2 | . . 2 Launcher . | . . . Special Weapon . | . . . Impact Weapon . | . . . Slashing Weapon . | . . . Piercing Weapon . | . . . Special Melee Weapon . | . . . Unidentified Prototypes . | . . . Parts Lost 4 | . . 4 Power 1 | . . 1 Propulsion 2 | . . 2 Utility 1 | . . 1 Weapon . | . . . Highest Loss Streak 3 | . . 3 To Critical Strikes . | . . . Average Backups 13 | . 11 14 Power . | . 1 . Propulsion 3 | . 4 3 Utility 2 | . 2 2 Weapon 5 | . 3 7 Tool/Special . | . . . Unused Backups 16 | . 6 10 Power 2 | . 1 1 Propulsion . | . . . Utility 4 | . 2 2 Weapon 10 | . 3 7 Tool/Special . | . . . Average Slot Usage (%) 98 | . 97 99 Engine 14 | . 14 14 Treads 25 | . 24 26 Leg 1 | . 3 . Device 9 | . 2 13 Storage 14 | . 14 14 Protection 3 | . 8 . Energy Gun 14 | . 22 9 Ballistic Gun 2 | . 6 . Ballistic Cannon 11 | . . 18 Peak Build Rating 13 | . 13 13 Average Rating 11 | . 9 12 On Entrance 8 | 6 6 13 Avg Prop Armor Cover (%) . | . . . Naked Turns . | . . . Heaviest Build 34 | 13 32 34 Greatest Support 40 | 20 40 40 Greatest Overweight (x) 1 | . 1 1 Average Overweight (x) . | . . . Largest Inventory Capacity 15 | . 15 15 Average Capacity 14 | . 14 15 Most Carried 15 | . 15 15 Average Carried 13 | . 11 14 Final Capacity 15 | 8 15 15 Final Carried 14 | 6 14 12 Class Distribution -------------------- 100% | Mutant Dominant Class ---------------- Mutant | -10/Materials Mutant | -10/Subcaves Resources | -11 -10 -10 ----------- Run | Yrd Mat Sub Matter Collected 535 | 200 114 221 Remotely . | . . . Salvage Created 223 | . 150 73 Parts 19 | . 13 6 Haulers Intercepted . | . . . Recyclers Shooed . | . . . Parts Field Recycled . | . . . Retrieved Matter . | . . . Parts Self-Destructed 5 | . . 5 Prevented . | . . . Parts Restored . | . . . Kills | -11 -10 -10 ------- Run | Yrd Mat Sub Combat Hostiles Destroyed 12 | . 6 6 Guns 8 | . 6 2 Cannons 4 | . . 4 Classes Destroyed 4 | . 3 1 Worker 1 | . 1 . Swarmer 3 | . 3 . Grunt 3 | . 3 . Subdweller 6 | . . 6 Best Kill Streak 4 | . 4 3 Combat Bots Only 3 | . 3 3 Max Kills in Single Turn 2 | . 2 1 Gunslinging . | . . . Exploded . | . . . Melee . | . . . Uniques/NPCs Destroyed . | . . . Combat | -11 -10 -10 -------- Run | Yrd Mat Sub Hostile Shots Fired 68 | . 15 53 Missed 19 | . 4 15 Hits 49 | . 11 38 Projectile 49 | . 11 38 Critical Strikes 2 | . . 2 Damage Taken 1034 | . 132 902 Core 254 | . 18 236 Absorbed by Shields . | . . . Core Remaining (%) 100 | 100 . . Volleys Fired 36 | . 9 27 Largest 2 | . 2 2 Hottest 130 | . 130 130 Shots Fired 72 | . 18 54 Gun 32 | . 18 14 Cannon 40 | . . 40 Launcher . | . . . Special . | . . . Kinetic 40 | . . 40 Thermal 32 | . 18 14 Explosive . | . . . Electromagnetic . | . . . Robot Hit Streak 19 | . 10 19 Robot Miss Streak 6 | . 6 4 Penetration Max . | . . . Secondary Targets 1 | . . 1 Max Gunslinging Chain 1 | . . 1 Shots Hit Robots 57 | . 16 41 Core Hits 49 | . 27 22 Critical Kills . | . . . Critical Parts Destroyed . | . . . Critical Strikes 1 | . . 1 Blast 1 | . . 1 Melee Attacks . | . . . Impact . | . . . Slashing . | . . . Piercing . | . . . Sneak Attacks . | . . . Combat Hostiles . | . . . Follow-up Attacks . | . . . Damage Inflicted 969 | . 220 749 Guns 419 | . 220 199 Cannons 550 | . . 550 Explosions . | . . . Melee . | . . . Ramming . | . . . Kinetic 550 | . . 550 Thermal 419 | . 220 199 Explosive . | . . . Electromagnetic . | . . . Impact . | . . . Slashing . | . . . Piercing . | . . . Highest Corruption . | . . . Average Corruption . | . . . Corruption Purged . | . . . Corruption Blocked . | . . . Overload Shots . | . . . Overflow Damage . | . . . Projectiles . | . . . Explosions . | . . . Melee . | . . . Knockbacks 6 | . . 6 Impact . | . . . Kinetic 6 | . . 6 Secondary . | . . . Self-Inflicted Damage . | . . . Shots . | . . . Rammed . | . . . Targets Rammed . | . . . Kicked . | . . . Crushed . | . . . Highest Temperature 257 | . 191 257 Average Temperature 91 | . 82 131 Received Heat Transfer 523 | . 60 463 Siege Activations . | . . . Martial Activations . | . . . Shielding Activations . | . . . Robots Disrupted . | . . . Combat Hostiles . | . . . Robots Corrupted . | . . . Combat Hostiles . | . . . Parts Fried . | . . . Impact Corruptions . | . . . Robots Melted . | . . . Combat Hostiles . | . . . Parts Melted . | . . . Heat Transferred 535 | . 275 260 Parts Sabotaged . | . . . Parts Stolen . | . . . Parts Stripped . | . . . Power Chain Reactions . | . . . Alert | -11 -10 -10 ------- Run | Yrd Mat Sub Maximum Alert Level . | . . . Low Security (%) 100 | . 100 . Level 1 . | . . . Level 2 . | . . . Level 3 . | . . . Level 4 . | . . . Level 5 . | . . . High Security . | . . . Max Security . | . . . Peak Influence 95 | . 95 . Initial . | . . . Average 28 | . 28 . Influence Increases 161 | . 161 . Destroy 0b10 Robot/C 120 | . 120 . Destroy 0b10 Robot/NC 5 | . 5 . Destroy Leader 30 | . 30 . Successful Hack 6 | . 6 . Influence Decreases 161 | . 96 65 Entered New Map 32 | . . 32 Time Decay 129 | . 96 33 Squads Dispatched 2 | . 2 . Investigation 1 | . 1 . Extermination . | . . . Reinforcement 1 | . 1 . Assault . | . . . Garrison . | . . . Intercept . | . . . Searches Triggered . | . . . Construction Impeded . | . . . Haulers Reinforced . | . . . Active Scanning Responses . | . . . Cargo Convoy Interrupts . | . . . Stealth | -11 -10 -10 --------- Run | Yrd Mat Sub Distress Signals 1 | . 1 . Communications Jammed . | . . . Distress Signals . | . . . Times Spotted 19 | . 11 8 Peak Tracking Total 4 | . 4 3 Tactical Retreats 1 | . . 1 Traps | -11 -10 -10 ------- Run | Yrd Mat Sub Traps Triggered 1 | . 1 . Indirectly . | . . . Trap Hack Attempts . | . . . Triggered . | . . . Disarmed . | . . . Reprogrammed . | . . . Reused . | . . . Traps Extracted . | . . . Installed . | . . . Triggered . | . . . Machines | -11 -10 -10 ---------- Run | Yrd Mat Sub Machines Disabled . | . . . Max in Single Turn . | . . . Machines Repaired . | . . . Machines Dismantled . | . . . Machines Sabotaged . | . . . Overloaded Fab Kills . | . . . Hacking | -11 -10 -10 --------- Run | Yrd Mat Sub Machines Accessed 2 | . 2 . Terminals 1 | . 1 . Fabricators . | . . . Repair Stations 1 | . 1 . Recycling Units . | . . . Scanalyzers . | . . . Garrison Access . | . . . Total Hacks 7 | . 7 . Successful 2 | . 2 . Failed 5 | . 5 . Catastrophic . | . . . Database Lockouts . | . . . Manual . | . . . Terminals 4 | . 4 . Fabricators . | . . . Repair Stations 3 | . 3 . Recycling Units . | . . . Scanalyzers . | . . . Garrison Access . | . . . Terminal Hacks 1 | . 1 . Zone Layout 1 | . 1 . Fabricator Hacks . | . . . Repair Station Hacks 1 | . 1 . Refit 1 | . 1 . Recycling Unit Hacks . | . . . Scanalyzer . | . . . Garrison Access Hacks . | . . . Unauthorized Hacks . | . . . Terminals . | . . . Fabricators . | . . . Repair Stations . | . . . Recycling Units . | . . . Scanalyzers . | . . . Garrison Access . | . . . Data Cores Recovered . | . . . Used . | . . . Hacking Detections 2 | . 2 . Full Trace Events . | . . . Feedback Events . | . . . Feedback Blocked . | . . . Robot Schematics Acquired . | . . . Robots Built . | . . . Authchips . | . . . Time . | . . . Total Robot Build Rating . | . . . Part Schematics Acquired . | . . . Parts Built . | . . . Authchips . | . . . Time . | . . . Total Part Build Rating . | . . . Part Studies Acquired . | . . . Parts Repaired . | . . . Time . | . . . Parts Recycled . | . . . Recycled Matter . | . . . Retrieved Matter . | . . . Retrieved Components . | . . . Parts Scanalyzed . | . . . Part Schematics Acquired . | . . . Parts Damaged . | . . . Bothacking | -11 -10 -10 ------------ Run | Yrd Mat Sub Used RIF Installer . | . . . Robots Hacked . | . . . Non-combat . | . . . Combat . | . . . Robot Hacks Applied . | . . . Relay Couplers Released . | . . . Fabnet Peak Effective % . | . . . Robots Rewired . | . . . Allies Hacked . | . . . Hacks Repelled . | . . . Allies | -11 -10 -10 -------- Run | Yrd Mat Sub Total Allies . | . . . Largest Group . | . . . Highest-Rated Group . | . . . Highest-Rated Ally . | . . . Total Orders . | . . . Ally Attacks . | . . . Total Damage . | . . . Kills . | . . . Allies Corrupted . | . . . Allies Melted . | . . . Intel | -11 -10 -10 ------- Run | Yrd Mat Sub Active Infowar (turns) . | . . . Robot Analysis Total . | . . . Derelict Logs Recovered . | . . . Drone Launches . | . . . Drone Recoveries . | . . . Exploration | -11 -10 -10 ------------- Run | Yrd Mat Sub Turns Passed 947 | . 343 604 Spaces Moved 497 | 1 184 312 Core . | . . . Treads 471 | . 165 306 Legs 20 | 1 19 . Wheels 6 | . . 6 Hover . | . . . Flight . | . . . Fastest Speed 95 | 120 120 95 Average Speed 158 | 120 157 159 Slowest Speed 240 | 120 190 240 Overloaded Moves . | . . . Propulsion Burnouts . | . . . Robots Hopped . | . . . Potential Cave-ins . | . . . Cave-ins Triggered . | . . . Exploration Rate (%) 17 | 2 29 22 Regions Visited 2 Branch Regions 1 Pre-discovered Areas . | . . . Known Exits Taken . | . . . Unknown Exits Taken 2 | 1 1 . Scrap Searched . | . . . Spaces Dug . | . . . Terrain Destroyed . | . . . Melee . | . . . Projectile . | . . . AOE . | . . . Terrain Rammed . | . . . Walls Destroyed . | . . . Machines Disabled . | . . . Actions | -11 -10 -10 --------- Run | Yrd Mat Sub Total 584 | . 221 363 Wait 10 | . 3 7 Move 495 | . 183 312 Hop . | . . . Pick Up 13 | . 10 3 Fast Attach 1 | . 1 . Attach 6 | . 2 4 Detach 3 | . 3 . Swap 14 | . 5 9 Drop 6 | . 5 1 Fire 36 | . 9 27 Melee . | . . . Ram . | . . . Kick . | . . . Crush . | . . . Escape Stasis . | . . . Rewire . | . . . Trap . | . . . Miscellaneous . | . . . Route ------- -11/Scrapyard -10/Materials (discovered 2 exits: [*Min] / [*Sub]) -10/Subcaves (discovered 1 exit: [*Mat]) History --------- Turn | Location | Event 1 | -11/Scrapyard | Discovered new exit (range 0) 1 | -11/Scrapyard | Entered Materials 106 | -10/Materials | Discovered new exit (range 15) 317 | -10/Materials | Discovered new exit (range 11) 319 | -10/Materials | Build established: Mutant 344 | -10/Materials | Entered Subcaves 590 | -10/Subcaves | Discovered new exit (range 7) 903 | -10/Subcaves | Core integrity fell below 50% 921 | -10/Subcaves | Core integrity fell below 20% 941 | -10/Subcaves | Lost 3 parts (2n1u) 948 | -10/Subcaves | Destroyed by 3F-7W1(R) with Subdweller Beam Cannon Last Messages --------------- 00815_ Acquired 9 matter. 00819_ Acquired 11 matter. 00847_ Acquired 14 matter. 00853_ Acquired 7 matter. 00856_ Acquired 9 matter. 00893_ F2-I6Q(R) knocked back. 00895_ Critical hit (Meltdown: +280). 00899_ Imp. Heat Sink destroyed. 00903_ F2-I6Q(R) destroyed. 00904_ Lgt. Treads destroyed. 00905_ 3F-7W1(R): "SUBMAD!" 00909_ 6L-4XB(R) knocked back. 00910_ Lgt. Treads destroyed. 00913_ 6L-4XB(R) knocked back. 00915_ 6L-4XB(R) affixes Scrap Shield Fragment to Scrap Shield. 00919_ 6L-4XB(R) knocked back. 00920_ Subatomizers dissect the Disposable Heat Sink. 00925_ 6L-4XB(R) destroyed. 00935_ Acquired 2 matter. 00944_ 3F-7W1(R) affixes Scrap Shield Fragment to Scrap Shield. Map ----- +----------------------------------------------------+ | ?????????????????????????????????????????????????? | | ?????????????????????????????????????????????????? | | ?????????????????????????????????????????????????? | | ?????????????????????????????????????????????????? | | ?????????????????????????????????????????????????? | | ?????????????????????????????????????????????????? | | ?????????????????????????????????????????????????? | | ?????????????????????????????????????????????????? | | ?????????????????????????????????????????????????? | | ?????????????????????????????????????????????????? | | ?????????????????????????????????????????????????? | | ?????????????????????????????????????????????????? | | ??????????????? ?????????????????????????????????? | | ???????????????? ????????????????????????????????? | | ???????????????? ????????????????????????????????? | | ???????????????? ????????????????????????????????? | | ???????????????? ????????????????????????????????? | | ????????????????# ???????????????????????????????? | | ????????????????# ???????????????????????????????? | | ???????????#????# ???????????????????????????????? | | ???????????# ???# ???????????????????????????????? | | ??????????## ### ????????????????????????????### | | ?????????## ???????????????????????????## | | ?????????? ???????????????????????????# | | ????????????? ########???????????????????# | | ????????????????# ##" #@#???????????????????#### | | ?????????????????# R*#??????????????????????# | | ?????????????????# !%##?????????????????????# | | ?????????????????#" ## #%%#?????????????????????? | | ?????????????????# $### #####??####???????????? | | ?????????????????# ### #?## ###??????###? | | ?????????????????## ?## ### ######## ## | | ??????????????????# ??## ## % | | ?????????????????? ### | | ????????????????# ### | | ????????????????# ##?### | | ????????????????# ### ## ##????# | | ????????????????#### ##?## ### %##?????# # | | ???????????????????# #???####?#####??????### | | ?????????????????? "" ?????????????????????? | | ?????????????????? " ?????????????????????? | | ???????????????????### ### ?????????????????????? | | ?????????????????????##??## ?????????????????????? | | ???????????????????????????#?????????????????????# | | ????????????????????????????????????????????????# | | ??????????????????????????????????????????????? | | ?????????????????????????????????????????????? | | ?????????????????????????????????????????????? ? | | ??????????????????????????????????????????????##?? | | ?????????????????????????????????????????????????? | +----------------------------------------------------+ Best States ------------- Heat Dissipation 39 Energy Generation 10 Energy Capacity 250 Matter Stores 300 Matter Capacity 300 Sight Range 16 Terrain Scan Density 10 Armor Coverage 80 Evasion (%) 45 Recoil Reduction 2 Item Schematics ----------------- None Robot Schematics ------------------ None Fabricated ------------ Nothing Repaired ---------- Nothing Studied --------- None Alien Tech Used ----------------- None Achievements -------------- None Challenges ------------ None Game ------ Seed HardlightLatentMace Manual? 0 Play Time 00:06:40 Cumulative 1290.0 hours Start 2026.03.29 @ 16:31:07 End 2026.03.29 @ 16:38:04 Sessions 1 Manual Loads 0 Difficulty Rogue Special Mode None Game No. 1583 Rogue 1299 Adventurer 124 Explorer 160 Win Type - Total 63 Types 49/0/8/4/1/0/0/1/0/0 Lore% 93 Gallery% 83 Achievement% 70 Wizard Run 0 Options --------- Layout 0 ASCII 0 Keyboard 1 Movement Numpad Keybinds 0 Fullscreen 2 Font 18/X11 Map View 76x50 Zoom Use 0% Tactical HUD 1 Map Filters NONE Filters NONE Steam 1 RUN: 592b912d-1259-4ae9-b892-89b7fb029722